[Event "24th Mediterranean Flower 2024"]
[Site "Rijeka"]
[Date "2024.03.04"]
[Round "1.1"]
[White "Urh, Zala"]
[Black "Skuhala, Barbara"]
[Result "0-1"]
[ECO "D11"]
[WhiteElo "2287"]
[BlackElo "2188"]
[Annotator "TA"]
[PlyCount "132"]
[EventDate "2024.03.04"]
[EventType "tourn"]
[EventCountry "CRO"]
[SourceTitle "playchess.com"]
[Source "ChessBase"]
[SourceQuality "1"]
[TimeControl "5400+30"]

{[%evp 9,131,0,0,-23,0,-4,0,0,-18,-2,-6,0,-7,-8,23,16,27,8,34,31,35,24,27,25,40,44,47,47,52,47,60,34,37,35,35,0,0,-12,-9,-10,47,22,24,0,0,-16,-22,-29,-31,-74,0,-45,-30,-32,-23,-22,-29,-83,-116,-110,-66,-127,-125,-152,-173,-266,-258,-259,-266,-456,-456,-457,-450,-449,-424,-739,-591,-656,-472,-1304,-1493,-1204,-443,-390,-378,-560,-527,-515,-525,-533,-514,-837,-685,-1188,-1193,-29959,-29956,-29966,-29969,-29965,-29969,-29960,-29959,-29968,-29970,-29974,-29975,-29976,-29973,-29980,-29981,-29980,-29978,-29982,-29983,-29985,-29986,-29986,-29987,-29987,-29988,-29998,-29999,-29999]} 1. d4 {[%emt 0:00:05]} d5 {[%emt 0:00:06]} 2. c4 {[%emt 0:00:11]} c6 {[%emt 0:00:08]} 3. Nf3 {[%emt 0:00:05]} Nf6 {[%emt 0:00:15]} 4. g3 {[%emt 0:00:11]} Bf5 {[%emt 0:06:09]} 5. Bg2 {[%emt 0:01:22]} e6 {[%emt 0:01:38]} 6. Nh4 {[%emt 0:09:38]} Bxb1 {[%emt 0:13:30]} (6... dxc4 7. Nxf5 exf5 8. O-O $11) 7. Rxb1 {[%emt 0:00:07]} Bb4+ {[%emt 0:00:04]} 8. Bd2 {[%emt 0:02:24] The position is equal.} Qa5 {[%emt 0:02:23]} 9. a3 {[%emt 0:01:42]} Bxd2+ {[%emt 0:11:35]} 10. Qxd2 {[%emt 0:00:07]} Qxd2+ {[%emt 0:00:11]} 11. Kxd2 {[%emt 0:00:06]} Kd7 {[%emt 0:00:14]} 12. Rhc1 {[%emt 0:06:05]} Rc8 {[%emt 0:05:33]} 13. Ke1 {[%emt 0:07:55]} Na6 {[%emt 0:05:39]} 14. Nf3 {[%emt 0:01:08]} Ke7 {[%emt 0:01:07]} 15. Ne5 {[%emt 0:01:24]} Nd7 {[%emt 0:06:20]} 16. Nd3 {[%emt 0:03:18]} Rd8 {[%emt 0:05:54]} 17. e3 {[%emt 0:03:39]} Rac8 {[%emt 0:07:21]} 18. c5 {[%emt 0:08:30]} Nc7 {[%emt 0:03:20]} 19. b4 {[%emt 0:02:19]} f6 {[%emt 0:07:32]} 20. Bh3 {[%emt 0:01:28]} a6 {[%emt 0:01:34]} 21. a4 {[%emt 0:01:51]} g5 {[%emt 0:01:27]} 22. Rc3 {[%emt 0:03:38]} h5 {[%emt 0:00:51]} 23. Bf1 {[%emt 0:02:33]} e5 {[%emt 0:01:36]} 24. Nc1 {[%emt 0:01:28][%cal Bd3c1,Bc1b3,Bb3a5][%mdl 32]} exd4 {[%emt 0:02:58]} ({Black should try} 24... Ne6 $11) 25. exd4 $14 {[%emt 0:00:08]} Ne6 {[%emt 0:00:28]} 26. Nb3 {[%emt 0:01:12]} f5 {[%emt 0:02:11]} 27. Na5 {[%emt 0:16:16]} Rc7 {[%emt 0:00:53]} (27... Nxd4 28. Nxb7 Rf8 (28... Re8 $2 29. Nd6 $18) 29. Na5 $16 (29. Bxa6 Ra8 $14)) 28. Rd1 {[%emt 0:00:05]} Nf6 {[%emt 0:00:50]} 29. f3 {[%emt 0:01:19]} Rh8 {[%emt 0:03:15]} ({Black should play} 29... Kf7 $17 30. Bd3 Kg6 (30... Nxd4 31. Bxa6 Nxf3+ 32. Rxf3 $15)) 30. Re3 {[%emt 0:04:09]} Kf7 {[%emt 0:02:42]} 31. Re5 {[%emt 0:02:09]} Ng7 {[%emt 0:00:08]} 32. Kf2 {[%emt 0:04:37]} h4 {[%emt 0:00:28]} 33. Rde1 {[%emt 0:15:51]} (33. b5 $11 axb5 34. axb5) 33... hxg3+ $17 {[%emt 0:01:41]} 34. hxg3 {[%emt 0:00:00]} g4 {[%emt 0:00:12]} 35. Bg2 {[%emt 0:00:00] [#]} gxf3 $1 {[%emt 0:01:56]} 36. Kxf3 {[%emt 0:00:00]} Ne4 {[%emt 0:00:20]} 37. Rh1 {[%emt 0:00:00]} (37. Rg1 $142) 37... Rxh1 $19 {[%emt 0:00:18]} 38. Bxh1 {[%emt 0:00:00]} Kf6 {[%emt 0:00:42]} 39. b5 $2 {[%emt 0:00:00]} (39. g4 {keeps fighting.}) 39... axb5 {[%emt 0:00:30]} (39... cxb5 40. Rxd5 (40. axb5 Ne6 $17) 40... bxa4 41. Ke3 $11) 40. axb5 {[%emt 0:00:00]} Ne6 {[%emt 0:02:23]} 41. Ke3 {[%emt 0:02:50]} Nxg3 {[%emt 0:02:45] A dynamic duo of knights.} (41... cxb5 42. Rxd5 Nxg3 43. Bf3 $15) 42. Bxd5 {[%emt 0:00:14]} (42. bxc6 $142 bxc6 (42... Nxh1 43. cxb7 f4+ 44. Kd2 $18) 43. Bg2 Nxc5 (43... f4+ $2 44. Kf3 $19) 44. Bh3) 42... f4+ {[%emt 0:01:01]} 43. Kf2 {[%emt 0:01:16]} Nxd4 {[%emt 0:00:36]} 44. Re8 {[%emt 0:00:06]} (44. bxc6 $142 bxc6 (44... Kxe5 45. cxb7 $11) 45. Nxc6 Rxc6 (45... Nxc6 46. Re6+ Kf5 47. Rxc6 $11) 46. Bxc6 Kxe5 47. Bg2) 44... cxd5 {[%emt 0:00:58]} 45. c6 {[%emt 0:00:52] [#]} Nxc6 {[%emt 0:00:36]} 46. bxc6 {[%emt 0:00:12]} bxc6 {[%emt 0:00:07][%mdl 4096] Endgame. KRN-KRN} 47. Rf8+ {[%emt 0:00:15]} (47. Kf3 {was called for.}) 47... Ke5 {[%emt 0:00:34]} 48. Kf3 {[%emt 0:00:26]} Ne4 {[%emt 0:00:33]} 49. Rxf4 {[%emt 0:00:45]} c5 {[%emt 0:00:18]} 50. Rf8 {[%emt 0:00:52]} (50. Nc4+ $142 Kd4 51. Nd6) 50... Kd4 {[%emt 0:00:42]} 51. Ke2 {[%emt 0:00:35]} Kc3 {[%emt 0:00:44] ...Kb4 would now be deadly.} 52. Rf3+ {[%emt 0:00:19]} Kb4 {[%emt 0:00:36] Black mates.} 53. Nb3 {[%emt 0:00:15]} Nc3+ {[%emt 0:00:22]} 54. Kd2 {[%emt 0:00:06]} Kxb3 {[%emt 0:00:13]} 55. Rxc3+ {[%emt 0:00:04] KR-KR} Kb4 {[%emt 0:00:06]} 56. Rc1 {[%emt 0:00:12]} Rh7 {[%emt 0:00:32]} 57. Rb1+ {[%emt 0:00:10]} Kc4 {[%emt 0:00:08]} 58. Ra1 {[%emt 0:00:12]} Kd4 {[%emt 0:00:12]} 59. Rg1 {[%emt 0:00:10]} Rh2+ {[%emt 0:00:14]} 60. Kd1 {[%emt 0:00:06]} Kc4 {[%emt 0:00:43]} 61. Rg4+ {[%emt 0:00:28]} d4 {[%emt 0:00:09]} 62. Rg5 {[%emt 0:00:30]} d3 {[%emt 0:01:07]} 63. Rf5 {[%emt 0:00:03]} Kd4 {[%emt 0:00:06]} 64. Rg5 {[%emt 0:00:21]} c4 {[%emt 0:00:05]} 65. Ra5 {[%emt 0:00:18]} Rh1+ {[%emt 0:00:08]} 66. Kd2 {[%emt 0:00:03]} c3# {[%emt 0:00:08] Weighted Error Value: White=0.82/Black=0.32.  Mistake:       	White=7     	Black=2      Inaccurate:     	White=5     	Black=2      OK:         	White=9     	Black=16     Best:        	---       	Black=4      Strong:       	---       	Black=1} 0-1

[Event "24th Mediterranean Flower 2024"]
[Site "Rijeka"]
[Date "2024.03.04"]
[Round "1.2"]
[White "Hnatyshyn, Anastasiia"]
[Black "Zagorac, Lara"]
[Result "1-0"]
[ECO "B22"]
[WhiteElo "2178"]
[BlackElo "1894"]
[Annotator "RC"]
[PlyCount "65"]
[EventDate "2024.03.04"]
[EventType "tourn"]
[EventCountry "CRO"]
[SourceTitle "playchess.com"]
[Source "ChessBase"]
[SourceQuality "1"]
[TimeControl "5400+30"]

1. e4 {[%emt 0:00:04]} c5 {[%emt 0:00:08]} 2. c3 {[%emt 0:00:06]} d5 {[%emt 0:00:39]} 3. exd5 {[%emt 0:00:04]} Nf6 {[%emt 0:00:19]} 4. Bb5+ {[%emt 0:00:25]} Nbd7 {[%emt 0:01:08]} 5. d4 {[%emt 0:04:25]} cxd4 {[%emt 0:03:10]} 6. Qxd4 {[%emt 0:00:43]} a6 {[%emt 0:02:52]} 7. Bxd7+ {[%emt 0:02:07]} Qxd7 {[%emt 0:04:09]} 8. c4 {[%emt 0:02:40]} e6 {[%emt 0:02:38]} 9. Nc3 {[%emt 0:03:09]} Bb4 {[%emt 0:01:59]} 10. Nge2 {[%emt 0:03:40]} O-O {[%emt 0:13:11]} 11. O-O {[%emt 0:05:35]} Bxc3 {[%emt 0:26:02]} 12. Nxc3 {[%emt 0:00:55]} exd5 {[%emt 0:01:49]} 13. cxd5 {[%emt 0:03:03]} Qf5 {[%emt 0:01:13]} 14. Bf4 {[%emt 0:04:02]} b5 {[%emt 0:03:34]} 15. Rfe1 {[%emt 0:04:53]} Qg6 {[%emt 0:05:25]} 16. Re3 {[%emt 0:05:36]} Nh5 {[%emt 0:05:50]} 17. Rae1 {[%emt 0:06:17]} Bf5 {[%emt 0:04:40]} 18. h3 {[%emt 0:51:46]} Rac8 {[%emt 0:03:14]} 19. Bh2 {[%emt 0:00:00]} Rc4 {[%emt 0:02:59]} 20. Qe5 {[%emt 0:00:00]} f6 {[%emt 0:03:33]} 21. Qe7 {[%emt 0:00:00]} Rcc8 {[%emt 0:03:07]} 22. Kh1 {[%emt 0:00:00]} b4 {[%emt 0:04:00]} 23. Qxb4 {[%emt 0:00:00]} a5 {[%emt 0:01:02]} 24. Qe7 {[%emt 0:00:00]} Qh6 {[%emt 0:02:34]} 25. g4 {[%emt 0:00:00]} Bxg4 {[%emt 0:00:41]} 26. hxg4 {[%emt 0:00:00]} Nf4 {[%emt 0:00:23]} 27. Qe4 {[%emt 0:00:00]} Nh3 {[%emt 0:00:59]} 28. Qg2 {[%emt 0:00:00]} Nf4 {[%emt 0:00:12]} 29. Qf3 {[%emt 0:00:00]} g5 {[%emt 0:00:16]} 30. d6 {[%emt 0:00:00]} f5 {[%emt 0:00:24]} 31. gxf5 {[%emt 0:00:00]} Qxd6 {[%emt 0:00:43]} 32. Bxf4 {[%emt 0:00:00]} gxf4 {[%emt 0:00:08]} 33. Re6 {[%emt 0:00:00]} 1-0

[Event "24th Mediterranean Flower 2024"]
[Site "Rijeka"]
[Date "2024.03.04"]
[Round "1.3"]
[White "Berke, Ana"]
[Black "Ivekovic, Tihana"]
[Result "1/2-1/2"]
[ECO "C90"]
[WhiteElo "2066"]
[BlackElo "2081"]
[Annotator "RC"]
[PlyCount "135"]
[EventDate "2024.03.04"]
[EventType "tourn"]
[EventCountry "CRO"]
[SourceTitle "playchess.com"]
[Source "ChessBase"]
[SourceQuality "1"]
[TimeControl "5400+30"]

1. e4 {[%emt 0:00:08]} e5 {[%emt 0:00:04]} 2. Nf3 {[%emt 0:00:08]} Nc6 {[%emt 0:00:05]} 3. Bb5 {[%emt 0:00:04]} a6 {[%emt 0:00:04]} 4. Ba4 {[%emt 0:00:04]} Nf6 {[%emt 0:00:05]} 5. O-O {[%emt 0:00:43]} Be7 {[%emt 0:00:11]} 6. Re1 {[%emt 0:00:59]} b5 {[%emt 0:00:07]} 7. Bb3 {[%emt 0:00:04]} O-O {[%emt 0:00:04]} 8. d3 {[%emt 0:01:53]} d6 {[%emt 0:00:07]} 9. c3 {[%emt 0:00:06]} Na5 {[%emt 0:01:13]} 10. Bc2 {[%emt 0:00:07]} c5 {[%emt 0:00:08]} 11. Nbd2 {[%emt 0:00:13]} Re8 {[%emt 0:01:09]} 12. Nf1 {[%emt 0:00:06]} h6 {[%emt 0:00:15]} 13. h3 {[%emt 0:00:18]} Bf8 {[%emt 0:00:28]} 14. Ng3 {[%emt 0:03:17]} Nc6 {[%emt 0:02:36]} 15. d4 {[%emt 0:04:21]} cxd4 {[%emt 0:15:12]} 16. cxd4 {[%emt 0:00:10]} exd4 {[%emt 0:01:41]} 17. Nxd4 {[%emt 0:00:26]} Nxd4 {[%emt 0:01:15]} 18. Qxd4 {[%emt 0:00:12]} Bd7 {[%emt 0:02:24]} 19. Bf4 {[%emt 0:04:10]} Rc8 {[%emt 0:00:28]} 20. Bb3 {[%emt 0:01:47]} Bc6 {[%emt 0:12:18]} 21. Rad1 {[%emt 0:04:51]} Qc7 {[%emt 0:20:58]} 22. e5 {[%emt 0:10:57]} dxe5 {[%emt 0:00:30]} 23. Rxe5 {[%emt 0:22:09]} Qb7 {[%emt 0:04:34]} 24. Rxe8 {[%emt 0:03:32]} Nxe8 {[%emt 0:06:23]} 25. Kh2 {[%emt 0:04:29]} Be7 {[%emt 0:12:21]} 26. Qd3 {[%emt 0:08:19]} Rd8 {[%emt 0:01:09]} 27. Qf5 {[%emt 0:06:37]} Nf6 {[%emt 0:00:15]} 28. Re1 {[%emt 0:01:33]} Bb4 {[%emt 0:08:35]} 29. Rc1 {[%emt 0:04:32]} Qd7 {[%emt 0:07:50]} 30. Bxh6 {[%emt 0:14:16]} Qxf5 {[%emt 0:00:16]} 31. Nxf5 {[%emt 0:00:06]} Bd7 {[%emt 0:00:38]} 32. Bxg7 {[%emt 0:01:19]} Ne8 {[%emt 0:00:45]} 33. Rd1 {[%emt 0:02:08]} Ba5 {[%emt 0:01:42]} 34. Nh6+ {[%emt 0:00:36]} Kxg7 {[%emt 0:00:05]} 35. Nxf7 {[%emt 0:00:13]} Nf6 {[%emt 0:00:54]} 36. Nxd8 {[%emt 0:00:29]} Bxd8 {[%emt 0:00:05]} 37. g4 {[%emt 0:00:32]} Bc7+ {[%emt 0:00:01]} 38. Kg1 {[%emt 0:00:14]} Bf4 {[%emt 0:00:32]} 39. f3 {[%emt 0:00:36]} Bc6 {[%emt 0:00:04]} 40. Kg2 {[%emt 0:00:12]} Kg6 {[%emt 0:00:24]} 41. Be6 {[%emt 0:00:15]} Kg5 {[%emt 0:00:15]} 42. Bf5 {[%emt 0:01:33]} Nd5 {[%emt 0:00:19]} 43. Kf2 {[%emt 0:01:25]} Ne3 {[%emt 0:01:36]} 44. h4+ {[%emt 0:00:33]} Kxh4 {[%emt 0:00:20]} 45. Rd8 {[%emt 0:00:28]} Nxf5 {[%emt 0:00:46]} 46. gxf5 {[%emt 0:00:21]} Kg5 {[%emt 0:00:13]} 47. Rf8 {[%emt 0:00:39]} Be5 {[%emt 0:01:06]} 48. Ke3 {[%emt 0:00:19]} Bxb2 {[%emt 0:00:28]} 49. f4+ {[%emt 0:00:29]} Kh6 {[%emt 0:00:06]} 50. Rg8 {[%emt 0:00:29]} Kh7 {[%emt 0:01:21]} 51. Rg6 {[%emt 0:00:09]} Bd5 {[%emt 0:00:06]} 52. Rxa6 {[%emt 0:00:17]} Kg7 {[%emt 0:00:09]} 53. Kf2 {[%emt 0:01:24]} Bc4 {[%emt 0:00:44]} 54. Kg3 {[%emt 0:00:14]} Bf6 {[%emt 0:00:31]} 55. Ra7+ {[%emt 0:00:22]} Kf8 {[%emt 0:00:14]} 56. Rb7 {[%emt 0:01:25]} Bxa2 {[%emt 0:00:26]} 57. Rxb5 {[%emt 0:00:04]} Bf7 {[%emt 0:01:00]} 58. Rb6 {[%emt 0:00:20]} Bd4 {[%emt 0:00:30]} 59. Rb8+ {[%emt 0:00:24]} Kg7 {[%emt 0:00:18]} 60. Kg4 {[%emt 0:00:09]} Bf6 {[%emt 0:00:08]} 61. Rb6 {[%emt 0:00:14]} Bc4 {[%emt 0:01:24]} 62. Rb7+ {[%emt 0:00:29]} Bf7 {[%emt 0:00:08]} 63. Ra7 {[%emt 0:00:23]} Kg8 {[%emt 0:00:18]} 64. Ra6 {[%emt 0:01:18]} Kg7 {[%emt 0:00:05]} 65. Rd6 {[%emt 0:00:13]} Bc4 {[%emt 0:00:23]} 66. Rd7+ {[%emt 0:01:06]} Bf7 {[%emt 0:00:05]} 67. Rc7 {[%emt 0:00:20]} Kg8 {[%emt 0:01:08]} 68. Ra7 {[%emt 0:01:14]} 1/2-1/2

[Event "24th Mediterranean Flower 2024"]
[Site "Rijeka"]
[Date "2024.03.04"]
[Round "1.4"]
[White "Mihaljevic, Eva"]
[Black "Radikovic, Anamarija"]
[Result "1-0"]
[ECO "B33"]
[WhiteElo "1946"]
[BlackElo "2039"]
[Annotator "RC"]
[PlyCount "107"]
[EventDate "2024.03.04"]
[EventType "tourn"]
[EventCountry "CRO"]
[SourceTitle "playchess.com"]
[Source "ChessBase"]
[SourceQuality "1"]
[TimeControl "5400+30"]

1. e4 {[%emt 0:00:03]} c5 {[%emt 0:00:05]} 2. Nf3 {[%emt 0:00:08]} Nc6 {[%emt 0:00:05]} 3. d4 {[%emt 0:00:07]} cxd4 {[%emt 0:00:05]} 4. Nxd4 {[%emt 0:00:06]} Nf6 {[%emt 0:00:05]} 5. Nc3 {[%emt 0:00:07]} e5 {[%emt 0:00:05]} 6. Ndb5 {[%emt 0:01:39]} d6 {[%emt 0:00:07]} 7. Bg5 {[%emt 0:00:34]} a6 {[%emt 0:00:09]} 8. Na3 {[%emt 0:00:19]} b5 {[%emt 0:00:08]} 9. Nd5 {[%emt 0:04:17]} Be7 {[%emt 0:00:08]} 10. Bxf6 {[%emt 0:00:28]} Bxf6 {[%emt 0:00:10]} 11. c4 {[%emt 0:02:00]} b4 {[%emt 0:01:03]} 12. Nc2 {[%emt 0:00:07]} a5 {[%emt 0:00:55]} 13. g3 {[%emt 0:04:11]} Bg5 {[%emt 0:07:49]} 14. Bg2 {[%emt 0:03:39]} O-O {[%emt 0:01:59]} 15. O-O {[%emt 0:00:54]} Ne7 {[%emt 0:07:51]} 16. Nce3 {[%emt 0:18:54]} Bxe3 {[%emt 0:02:34]} 17. Nxe3 {[%emt 0:01:53]} Be6 {[%emt 0:02:53]} 18. Qd3 {[%emt 0:04:57]} Qb6 {[%emt 0:21:46]} 19. Rad1 {[%emt 0:05:30]} Rad8 {[%emt 0:03:53]} 20. Kh1 {[%emt 0:04:39]} Qc5 {[%emt 0:11:22]} 21. b3 {[%emt 0:07:58]} Nc6 {[%emt 0:04:39]} 22. Nf5 {[%emt 0:11:07]} Rd7 {[%emt 0:01:30]} 23. Qe3 {[%emt 0:04:31]} Qxe3 {[%emt 0:05:05]} 24. fxe3 {[%emt 0:01:38]} Rfd8 {[%emt 0:00:07]} 25. Rd2 {[%emt 0:04:49]} g6 {[%emt 0:01:12]} 26. Rfd1 {[%emt 0:04:51]} gxf5 {[%emt 0:02:34]} 27. exf5 {[%emt 0:00:16]} Bxf5 {[%emt 0:00:06]} 28. Bxc6 {[%emt 0:00:19]} Rc7 {[%emt 0:00:05]} 29. Bg2 {[%emt 0:02:05]} a4 {[%emt 0:05:56]} 30. Rxd6 {[%emt 0:06:21]} Rxd6 {[%emt 0:00:56]} 31. Rxd6 {[%emt 0:00:05]} axb3 {[%emt 0:00:04]} 32. axb3 {[%emt 0:00:29]} Ra7 {[%emt 0:01:01]} 33. Bd5 {[%emt 0:02:42]} Bh3 {[%emt 0:12:38]} 34. Rd8+ {[%emt 0:00:20]} Kg7 {[%emt 0:00:06]} 35. Ra8 {[%emt 0:02:29]} Ra3 {[%emt 0:00:15]} 36. c5 {[%emt 0:01:46]} Be6 {[%emt 0:00:06]} 37. Rd8 {[%emt 0:00:13]} Bxd5+ {[%emt 0:06:42]} 38. Rxd5 {[%emt 0:00:02]} Rxb3 {[%emt 0:00:06]} 39. Rxe5 {[%emt 0:01:17]} Kf6 {[%emt 0:02:01]} 40. Re4 {[%emt 0:00:18]} Rb1+ {[%emt 0:00:53]} 41. Kg2 {[%emt 0:00:07]} b3 {[%emt 0:00:09]} 42. c6 {[%emt 0:01:21]} b2 {[%emt 0:00:27]} 43. c7 {[%emt 0:01:09]} Rg1+ {[%emt 0:00:27]} 44. Kh3 {[%emt 0:00:29]} b1=Q {[%emt 0:00:16]} 45. Rf4+ {[%emt 0:00:12]} Ke5 {[%emt 0:01:35]} 46. c8=Q {[%emt 0:00:18]} Rc1 {[%emt 0:00:29]} 47. Qe8+ {[%emt 0:00:23]} Kd6 {[%emt 0:00:12]} 48. Rd4+ {[%emt 0:00:39]} Kc5 {[%emt 0:00:11]} 49. Qe5+ {[%emt 0:00:37]} Kb6 {[%emt 0:00:12]} 50. Qd6+ {[%emt 0:00:56]} Ka5 {[%emt 0:01:05]} 51. Qd8+ {[%emt 0:00:41]} Kb5 {[%emt 0:00:38]} 52. Qd7+ {[%emt 0:00:28]} Ka5 {[%emt 0:00:36]} 53. Qa4+ {[%emt 0:00:19]} Kb6 {[%emt 0:00:07]} 54. Rb4+ {[%emt 0:00:04]} 1-0

[Event "24th Mediterranean Flower 2024"]
[Site "Rijeka"]
[Date "2024.03.04"]
[Round "1.5"]
[White "Medic, Mirjana"]
[Black "Hamdouchi, Adina-Maria"]
[Result "1/2-1/2"]
[ECO "D76"]
[WhiteElo "2132"]
[BlackElo "2213"]
[Annotator "RC"]
[PlyCount "50"]
[EventDate "2024.03.04"]
[EventType "tourn"]
[EventCountry "CRO"]
[SourceTitle "playchess.com"]
[Source "ChessBase"]
[SourceQuality "1"]
[TimeControl "5400+30"]

1. d4 {[%emt 0:00:03]} Nf6 {[%emt 0:00:07]} 2. Nf3 {[%emt 0:00:19]} g6 {[%emt 0:00:08]} 3. c4 {[%emt 0:00:12]} Bg7 {[%emt 0:00:28]} 4. g3 {[%emt 0:00:06]} d5 {[%emt 0:00:30]} 5. cxd5 {[%emt 0:00:17]} Nxd5 {[%emt 0:00:25]} 6. Bg2 {[%emt 0:00:11]} O-O {[%emt 0:02:41]} 7. O-O {[%emt 0:00:12]} Nb6 {[%emt 0:00:18]} 8. Nc3 {[%emt 0:00:17]} Nc6 {[%emt 0:00:31]} 9. e3 {[%emt 0:00:29]} a5 {[%emt 0:00:18]} 10. Re1 {[%emt 0:03:21]} e5 {[%emt 0:03:15]} 11. d5 {[%emt 0:04:43]} e4 {[%emt 0:08:13]} 12. dxc6 {[%emt 0:00:12]} Qxd1 {[%emt 0:00:05]} 13. Rxd1 {[%emt 0:00:11]} exf3 {[%emt 0:00:03]} 14. Bxf3 {[%emt 0:00:13]} bxc6 {[%emt 0:00:03]} 15. Bxc6 {[%emt 0:14:05]} Rb8 {[%emt 0:00:16]} 16. Nd5 {[%emt 0:16:22]} Nxd5 {[%emt 0:06:13]} 17. Bxd5 {[%emt 0:03:20]} a4 {[%emt 0:09:47]} 18. Rb1 {[%emt 0:05:37]} Rb6 {[%emt 0:02:44]} 19. b3 {[%emt 0:05:56]} Bf5 {[%emt 0:04:08]} 20. e4 {[%emt 0:01:18]} Bg4 {[%emt 0:00:03]} 21. Be3 {[%emt 0:10:41]} Bxd1 {[%emt 0:02:02]} 22. Bxb6 {[%emt 0:00:06]} Bc2 {[%emt 0:04:55]} 23. Rc1 {[%emt 0:00:11]} axb3 {[%emt 0:00:28]} 24. axb3 {[%emt 0:00:13]} Bxe4 {[%emt 0:03:47]} 25. Bxe4 {[%emt 0:00:07]} cxb6 {[%emt 0:00:04]} 1/2-1/2

[Event "24th Mediterranean Flower 2024"]
[Site "Rijeka"]
[Date "2024.03.04"]
[Round "2.1"]
[White "Skuhala, Barbara"]
[Black "Hamdouchi, Adina-Maria"]
[Result "1/2-1/2"]
[ECO "B07"]
[WhiteElo "2188"]
[BlackElo "2213"]
[Annotator "RC"]
[PlyCount "33"]
[EventDate "2024.03.04"]
[EventType "tourn"]
[EventCountry "CRO"]
[SourceTitle "playchess.com"]
[Source "ChessBase"]
[SourceQuality "1"]
[TimeControl "5400+30"]

1. e4 {[%emt 0:00:13]} d6 {[%emt 0:00:04]} 2. d4 {[%emt 0:00:11]} Nf6 {[%emt 0:00:04]} 3. Nc3 {[%emt 0:00:14]} g6 {[%emt 0:00:05]} 4. Be3 {[%emt 0:00:10]} a6 {[%emt 0:00:44]} 5. Qd2 {[%emt 0:01:43]} b5 {[%emt 0:03:12]} 6. Bd3 {[%emt 0:00:46]} Bb7 {[%emt 0:00:42]} 7. f3 {[%emt 0:04:29]} Nbd7 {[%emt 0:00:25]} 8. Nce2 {[%emt 0:00:44]} c5 {[%emt 0:01:57]} 9. c3 {[%emt 0:00:22]} cxd4 {[%emt 0:02:06]} 10. cxd4 {[%emt 0:00:24]} Bg7 {[%emt 0:00:10]} 11. Nh3 {[%emt 0:12:21]} O-O {[%emt 0:02:35]} 12. Nf2 {[%emt 0:05:13]} e5 {[%emt 0:03:18]} 13. d5 {[%emt 0:04:33]} Nc5 {[%emt 0:08:44]} 14. Bc2 {[%emt 0:04:38]} Rc8 {[%emt 0:00:33]} 15. g4 {[%emt 0:24:11]} Na4 {[%emt 0:20:48]} 16. Bd3 {[%emt 0:08:46]} Nc5 {[%emt 0:01:04]} 17. Bc2 {[%emt 0:00:06]} 1/2-1/2

[Event "24th Mediterranean Flower 2024"]
[Site "Rijeka"]
[Date "2024.03.04"]
[Round "2.2"]
[White "Radikovic, Anamarija"]
[Black "Medic, Mirjana"]
[Result "1/2-1/2"]
[ECO "E01"]
[WhiteElo "2039"]
[BlackElo "2132"]
[Annotator "RC"]
[PlyCount "30"]
[EventDate "2024.03.04"]
[EventType "tourn"]
[EventCountry "CRO"]
[SourceTitle "playchess.com"]
[Source "ChessBase"]
[SourceQuality "1"]
[TimeControl "5400+30"]

1. Nf3 {[%emt 0:00:02]} d5 {[%emt 0:00:16]} 2. g3 {[%emt 0:00:06]} Nf6 {[%emt 0:00:33]} 3. Bg2 {[%emt 0:00:08]} c6 {[%emt 0:00:20]} 4. c4 {[%emt 0:00:22]} e6 {[%emt 0:04:48]} 5. O-O {[%emt 0:01:30]} Bd6 {[%emt 0:00:31]} 6. d4 {[%emt 0:01:04]} Nbd7 {[%emt 0:01:00]} 7. b3 {[%emt 0:02:42]} b6 {[%emt 0:01:36]} 8. Bb2 {[%emt 0:00:55]} Bb7 {[%emt 0:05:04]} 9. Nc3 {[%emt 0:03:39]} O-O {[%emt 0:02:37]} 10. Qc2 {[%emt 0:04:28]} Re8 {[%emt 0:12:43]} 11. Rfd1 {[%emt 0:03:16]} Qe7 {[%emt 0:04:01]} 12. Rac1 {[%emt 0:04:04]} Rac8 {[%emt 0:03:11]} 13. e4 {[%emt 0:03:06]} Nxe4 {[%emt 0:01:56]} 14. Nxe4 {[%emt 0:00:07]} dxe4 {[%emt 0:00:04]} 15. Qxe4 {[%emt 0:00:06]} Nf6 {[%emt 0:01:21]} 1/2-1/2

[Event "24th Mediterranean Flower 2024"]
[Site "Rijeka"]
[Date "2024.03.04"]
[Round "2.3"]
[White "Ivekovic, Tihana"]
[Black "Mihaljevic, Eva"]
[Result "1-0"]
[ECO "B90"]
[WhiteElo "2081"]
[BlackElo "1946"]
[Annotator "RC"]
[PlyCount "39"]
[EventDate "2024.03.04"]
[EventType "tourn"]
[EventCountry "CRO"]
[SourceTitle "playchess.com"]
[Source "ChessBase"]
[SourceQuality "1"]
[TimeControl "5400+30"]

1. e4 {[%emt 0:00:01]} c5 {[%emt 0:01:36]} 2. Nf3 {[%emt 0:00:06]} d6 {[%emt 0:00:04]} 3. d4 {[%emt 0:00:05]} cxd4 {[%emt 0:00:05]} 4. Nxd4 {[%emt 0:00:04]} Nf6 {[%emt 0:00:05]} 5. Nc3 {[%emt 0:00:04]} a6 {[%emt 0:00:06]} 6. h3 {[%emt 0:00:05]} e5 {[%emt 0:00:59]} 7. Nf3 {[%emt 0:00:07]} Be7 {[%emt 0:05:12]} 8. g4 {[%emt 0:00:10]} h6 {[%emt 0:00:35]} 9. Rg1 {[%emt 0:04:28]} Qc7 {[%emt 0:19:57]} 10. g5 {[%emt 0:01:51]} hxg5 {[%emt 0:00:05]} 11. Nxg5 {[%emt 0:00:05]} b5 {[%emt 0:21:31]} 12. a4 {[%emt 0:18:50]} Bb7 {[%emt 0:02:39]} 13. axb5 {[%emt 0:01:15]} axb5 {[%emt 0:00:17]} 14. Rxa8 {[%emt 0:06:04]} Bxa8 {[%emt 0:00:04]} 15. Bxb5+ {[%emt 0:00:04]} Nbd7 {[%emt 0:02:11]} 16. Qd3 {[%emt 0:01:46]} O-O {[%emt 0:05:24]} 17. Bc4 {[%emt 0:03:10]} Nb6 {[%emt 0:04:47]} 18. Bb3 {[%emt 0:00:14]} Nfd7 {[%emt 0:05:07]} 19. Qg3 {[%emt 0:03:56]} Bf6 {[%emt 0:01:46]} 20. Qh4 {[%emt 0:01:34]} 1-0